bitfinex/quotes_ETHUSD_20241030
["timestamp","ask_amount","ask_price","bid_price","bid_amount"]
[1730325324900,0.7542,2662.8,2661.9,0.55]
[1730325326199,0.7542,2662.8,2661.9,0.5428]
[1730325326569,0.7542,2662.8,2661.9,0.542]
[1730325327298,0.7542,2662.8,2661.9,0.5348]
[1730325327497,0.7542,2662.8,2661.9,0.534]
[1730325330692,0.7542,2662.8,2661.8,4.30684]
[1730325330893,0.7542,2662.8,2662.0,0.55]
[1730325331100,0.7542,2662.8,2661.8,4.30684]
[1730325331410,0.7542,2662.8,2661.8,0.55]
[1730325334106,0.7542,2662.8,2661.9,0.86132413]
[1730325334281,0.7542,2662.8,2661.8,0.55]
[1730325337911,0.7542,2662.8,2661.9,0.07512409]
[1730325339619,0.7542,2662.8,2661.8,0.55]
[1730325343733,0.7542,2662.8,2661.9,3.75661]
[1730325343892,0.7542,2662.8,2662.0,1.3824]
[1730325344098,0.7542,2662.8,2662.0,5.13897]
[1730325346794,0.7542,2662.8,2662.0,1.3824]
[1730325351020,0.7542,2662.8,2662.1,3.75643]
[1730325351344,0.7532,2663.3,2662.4,0.55]
[1730325351706,0.7532,2663.3,2662.6,0.55]
[1730325354822,0.7532,2663.3,2662.4,4.30599]
[1730325355639,0.7532,2663.3,2662.4,0.55]
[1730325360948,0.7532,2663.3,2662.6,0.55]
[1730325361154,0.7532,2663.3,2662.4,0.55]
[1730325361451,0.7532,2663.3,2662.5,0.07510255]
[1730325364925,0.7532,2663.3,2662.2,0.55]
[1730325366568,0.7532,2663.3,2662.4,0.55]
[1730325366876,0.7532,2663.3,2662.5,0.07510763]
[1730325367043,0.7532,2663.3,2662.4,0.55]
[1730325367244,0.7532,2663.3,2662.5,0.07510763]
[1730325367474,0.7532,2663.3,2662.4,0.55]
[1730325367774,0.7532,2663.3,2662.5,0.07510763]
[1730325369759,3.0,2663.7,2662.5,0.07510763]
[1730325369948,0.801,2663.6,2662.5,0.07510763]
[1730325372979,0.6805,2663.5,2662.5,0.07510763]
[1730325373175,3.6805,2663.4,2662.4,0.55]
[1730325373379,0.6805,2663.2,2662.4,0.55]
[1730325374774,0.6805,2663.2,2662.6,0.55]
[1730325380486,0.6805,2663.2,2662.8,0.55]
[1730325380985,0.6805,2663.2,2662.6,0.55]
[1730325381192,0.6805,2663.2,2662.8,0.55]
[1730325381504,0.6805,2663.2,2662.6,0.55]
[1730325389378,0.6805,2663.2,2662.3,0.62510116]
[1730325395883,0.6805,2663.2,2662.5,0.55]
[1730325396084,0.6805,2663.2,2662.6,0.07510593]
[1730325396285,0.6805,2663.2,2662.5,0.55]
[1730325397490,0.6805,2663.2,2662.6,0.07510509]
[1730325398011,0.6805,2663.2,2662.5,0.55]
[1730325401597,0.6805,2663.2,2662.6,0.07510511]
[1730325402523,0.6805,2663.2,2662.5,0.55]
[1730325402705,0.6805,2663.2,2662.6,0.07510511]
[1730325403297,0.6805,2663.2,2662.5,0.55]
[1730325408717,0.6805,2663.2,2662.6,0.07510513]
[1730325419730,0.6805,2663.2,2662.7,0.55]
[1730325419917,0.6805,2663.2,2662.7,1.3456]
[1730325430537,0.6805,2663.2,2662.8,0.07509618]
[1730325430853,0.6805,2663.2,2662.9,0.55]
[1730325432539,0.6805,2663.2,2662.8,0.55]
[1730325448497,0.6805,2663.2,2662.6,0.6]
[1730325448701,0.6805,2663.2,2662.7,0.55]
[1730325464477,0.58826159,2663.7,2662.9,0.55]
[1730325464478,0.6805,2663.4,2662.9,0.55]
[1730325464666,0.6805,2663.4,2663.0,0.07509452]
[1730325466572,0.6805,2663.4,2662.9,0.55]
[1730325467171,0.6805,2663.4,2662.7,0.55]
[1730325471590,0.6805,2663.4,2662.9,0.55]
[1730325471788,0.6805,2663.4,2662.7,0.55]
[1730325473604,0.6805,2663.4,2662.9,0.55]
[1730325473789,0.6805,2663.4,2663.0,0.07509468]
[1730325476305,0.6805,2663.4,2662.7,0.55]
[1730325481636,0.6805,2663.4,2662.9,0.55]
[1730325482149,0.6805,2663.4,2662.7,0.55]
[1730325496739,0.6805,2663.4,2662.9,0.55]
[1730325497651,0.6805,2663.4,2662.7,0.55]
[1730325497954,0.6805,2663.4,2662.7,0.62509878]
[1730325498252,0.6805,2663.4,2662.7,0.55]
[1730325498544,0.6805,2663.3,2662.7,0.55]
[1730325501639,0.6805,2663.3,2662.9,0.55]
[1730325502154,0.6805,2663.3,2662.7,0.55]
[1730325503057,0.6805,2663.3,2662.9,0.55]
[1730325503422,0.6805,2663.3,2662.7,0.55]
[1730325511620,0.6805,2663.3,2662.9,0.55]
[1730325512017,0.6805,2663.3,2662.7,0.55]
[1730325521698,0.6805,2663.3,2662.9,0.55]
[1730325522066,0.6805,2663.3,2662.7,0.55]
[1730325531906,0.6805,2663.3,2662.9,0.55]
[1730325532107,0.6805,2663.3,2662.7,0.55]
[1730325533272,0.6805,2663.3,2662.9,0.55]
[1730325533780,0.6805,2663.3,2662.7,0.07509891]
[1730325533781,0.6805,2663.3,2662.8,0.55]
[1730325535092,0.6805,2663.3,2662.9,0.07509887]
[1730325535298,0.6805,2663.3,2662.7,0.55]
[1730325541839,0.6805,2663.3,2662.9,0.55]
[1730325542139,0.6805,2663.3,2662.7,0.39506142]
[1730325553718,0.6805,2663.3,2662.6,0.6]
[1730325554491,0.6805,2663.3,2662.7,0.07511062]
[1730325554693,0.6805,2663.3,2662.6,0.6]
[1730325555186,0.6805,2663.3,2662.7,0.7731]
[1730325556089,0.6805,2663.3,2662.8,0.55]
[1730325556705,0.6805,2663.3,2662.6,0.6]
[1730325565906,0.6805,2663.3,2662.7,0.62510702]
[1730325566101,0.6805,2663.3,2662.7,0.55]
[1730325570340,0.6805,2663.3,2662.6,0.6]
[1730325572165,0.6805,2662.8,2662.6,0.6]
[1730325580989,0.6805,2662.8,2662.6,0.59888044]
[1730325584285,0.6805,2662.8,2662.6,0.59808044]
[1730325588913,0.6805,2663.3,2662.6,0.59808044]
[1730325594092,0.58832702,2663.2,2662.6,0.59808044]
[1730325594499,0.6805,2663.1,2662.6,0.59808044]
[1730325598206,0.6805,2663.1,2662.7,0.7831]
[1730325598513,0.58832702,2663.2,2662.7,0.85820649]
[1730325599405,0.6805,2663.5,2662.7,0.85820649]
[1730325599589,0.6805,2663.5,2662.7,0.7831]
[1730325599772,1.10737758,2663.5,2662.8,0.0751017]
[1730325600003,1.10737758,2663.5,2662.7,0.8582017]
[1730325600274,0.6805,2663.4,2662.7,0.7831]
[1730325600610,0.6805,2663.4,2662.6,0.59808044]
[1730325600974,0.6805,2663.2,2662.6,0.59808044]
[1730325601178,3.0,2663.2,2662.6,0.59808044]
[1730325601394,0.6805,2663.1,2662.6,0.59808044]
[1730325602279,0.6805,2662.8,2662.6,0.10585708]
[1730325602479,1.66658973,2662.8,2662.6,0.10225708]
[1730325602677,2.03463973,2662.7,2662.6,0.10225708]
[1730325603384,9.55044083,2662.7,2662.6,0.10225708]
[1730325604017,9.04855,2662.7,2662.6,0.10225708]
[1730325607127,9.57044083,2662.7,2662.6,0.10225708]
[1730325607331,12.85635383,2662.7,2662.6,0.10225708]
[1730325607497,12.23361983,2662.7,2662.6,0.10225708]
[1730325607698,13.08549483,2662.7,2662.6,0.10225708]
[1730325607994,12.40242883,2662.7,2662.6,0.10225708]
[1730325608401,12.88662773,2662.7,2662.6,0.10225708]
[1730325611232,13.27777148,2662.7,2662.6,0.10225708]
[1730325613928,12.88662773,2662.7,2662.6,0.10225708]
[1730325614496,12.33662773,2662.7,2662.6,0.10225708]
[1730325614699,7.05463973,2662.7,2662.6,0.10225708]
[1730325614923,12.70019687,2662.7,2662.6,0.10225708]
[1730325615130,11.79719187,2662.7,2662.6,0.10225708]
[1730325616416,14.79719187,2662.7,2662.6,0.10225708]
[1730325617502,15.84204018,2662.7,2662.6,0.10225708]
[1730325617933,13.33515418,2662.7,2662.6,0.10225708]
[1730325618315,15.41667618,2662.7,2662.6,0.10225708]
[1730325619818,13.33515418,2662.7,2662.6,0.10225708]
[1730325620022,16.90950218,2662.7,2662.6,0.10225708]
[1730325620620,16.84427849,2662.7,2662.6,0.10225708]
[1730325621810,16.62820549,2662.7,2662.6,0.10225708]
[1730325622141,16.19807649,2662.7,2662.6,0.10225708]
[1730325623115,13.96241035,2662.7,2662.6,0.10225708]
[1730325623327,16.43246745,2662.7,2662.6,0.10225708]
[1730325625455,16.98246745,2662.7,2662.6,0.10225708]
[1730325630276,3.0,2661.5,2660.8,0.7722]
[1730325631556,3.39101783,2661.5,2660.8,0.7722]
[1730325632085,3.0,2661.5,2660.8,0.7722]
[1730325632247,6.10342416,2661.9,2660.8,0.7722]
[1730325632248,3.0,2661.8,2660.8,0.7722]
[1730325632438,5.0,2661.9,2660.8,0.7722]
[1730325632776,5.39092855,2661.9,2660.8,0.7722]
[1730325633751,3.0,2661.8,2660.8,0.7722]
[1730325633957,3.0,2661.5,2660.8,0.7722]
[1730325634494,2.21878398,2661.4,2660.8,0.7722]
[1730325635985,3.0,2661.2,2660.8,0.7722]
[1730325636561,2.21878398,2661.4,2660.8,0.7722]
[1730325641609,5.0,2660.8,2660.2,0.8009]
[1730325641810,3.0,2660.7,2660.2,0.8009]
[1730325643167,5.01561773,2660.7,2660.2,0.8009]
[1730325643984,5.0807897,2660.7,2660.2,0.8009]
[1730325644306,5.01561773,2660.7,2660.2,0.8009]
[1730325644482,1.00156177,2660.6,2660.2,0.8009]
[1730325645507,3.0,2660.5,2660.2,0.8009]
[1730325645839,1.98041261,2660.6,2660.2,0.8009]
[1730325653615,0.39106664,2661.2,2660.2,0.8009]
[1730325653821,0.3912945,2661.1,2660.2,0.8009]
[1730325655228,5.20428932,2661.1,2660.2,0.8009]
[1730325656818,0.3912945,2661.1,2660.2,0.8009]
[1730325660434,5.17710602,2661.2,2659.9,0.8124]
[1730325660595,5.17710602,2661.2,2660.0,3.75936]
[1730325660802,5.17710602,2661.2,2660.3,0.8283]
[1730325661732,4.78549121,2661.1,2660.3,0.8283]
[1730325661908,0.81765579,2661.0,2660.3,0.8283]
[1730325663496,2.58239395,2661.0,2660.3,0.8283]
[1730325671526,3.81765579,2661.0,2660.3,0.8283]
[1730325672163,0.81765579,2661.0,2660.3,0.8283]
[1730325672364,3.9162908,2661.2,2660.3,0.8283]
[1730325672867,3.39106664,2661.2,2660.3,0.8283]
[1730325673028,3.9162908,2661.2,2660.3,0.8283]
[1730325674651,3.39106664,2661.2,2660.3,0.8283]
[1730325677847,0.58882127,2661.0,2660.3,0.8283]
[1730325678168,3.52522416,2660.9,2660.3,0.8283]
[1730325680236,3.91815123,2660.9,2660.3,0.8283]
[1730325680437,5.0,2660.7,2660.3,0.8283]
[1730325680872,3.0,2660.6,2660.3,0.8283]
[1730325682975,4.65998038,2660.6,2660.3,0.8283]
[1730325683177,1.54419804,2660.5,2659.3,0.55]
[1730325683378,1.54419804,2660.5,2659.5,0.55]
[1730325683544,1.54419804,2660.5,2659.6,0.8207]
[1730325683746,0.62041784,2660.4,2659.6,0.8207]
[1730325686981,0.5782,2660.3,2659.3,0.55]
[1730325687155,5.181158,2660.3,2658.9,0.7888]
[1730325687362,1.08015758,2660.2,2658.9,0.7888]
[1730325687884,2.67783869,2660.2,2658.9,0.7888]
[1730325688084,5.0,2660.0,2658.9,0.7888]
[1730325688291,3.0,2659.6,2658.9,0.7888]
[1730325689257,0.5782,2659.5,2658.9,0.7888]
[1730325689499,0.35782,2659.4,2658.9,0.7888]
[1730325690478,5.0,2659.3,2657.8,3.7624]
[1730325690678,5.0,2659.3,2657.9,0.8143]
[1730325691082,3.0,2659.2,2657.9,0.8143]
[1730325691395,1.3782,2659.1,2657.9,0.8143]
[1730325691855,1.3782,2659.1,2657.8,0.55]
[1730325692056,1.3782,2659.1,2658.0,0.55]
[1730325692297,3.0,2658.9,2657.6,0.7806]
[1730325692795,3.0,2658.9,2657.7,0.7968]
[1730325693469,3.0,2658.9,2657.9,0.7968]
[1730325693676,0.5782,2658.7,2657.9,0.7968]
[1730325695786,3.0,2658.6,2657.9,0.7968]
[1730325697202,4.42003684,2658.6,2657.9,0.7968]
[1730325697409,1.42003684,2658.6,2657.9,0.7968]
[1730325704638,1.42003684,2658.6,2658.0,1.3399]
[1730325704927,1.42003684,2658.6,2658.4,3.76155]
[1730325705133,1.42003684,2658.6,2658.5,0.7899]
[1730325705433,0.35782,2659.4,2658.5,0.7899]
[1730325714845,1.25124162,2659.3,2658.5,0.7899]
[1730325715001,0.35782,2659.4,2658.5,0.7899]
[1730325720546,1.61418506,2659.4,2658.5,0.7899]
[1730325720855,0.51923851,2659.3,2658.5,0.7899]
[1730325738155,0.58922288,2659.2,2658.5,0.7899]
[1730325740079,3.5782,2659.1,2658.5,0.7899]
[1730325741349,3.5782,2659.1,2657.4,0.8231]
[1730325741586,3.0,2658.8,2657.4,0.8231]
[1730325741772,0.3,2658.7,2657.4,0.8231]
[1730325741985,0.3,2658.7,2657.4,3.76307]
[1730325742275,0.3,2658.7,2657.6,0.8103]
[1730325743009,0.3,2658.7,2657.7,0.55]
[1730325743211,0.3,2658.7,2657.8,0.7728]
[1730325745406,0.8782,2658.7,2657.8,0.7728]
[1730325745610,0.38782,2658.6,2657.8,0.7728]
[1730325749978,5.38782,2658.6,2657.8,0.7728]
[1730325750292,3.0,2658.5,2657.8,0.7728]
[1730325751814,0.06518284,2658.4,2657.8,0.7728]
[1730325752540,0.64338284,2658.4,2657.8,0.7728]
[1730325752722,0.36433828,2658.3,2657.8,0.7728]
[1730325757731,1.6039441,2658.3,2657.8,0.7728]
[1730325763330,1.23396738,2658.2,2657.8,0.7728]
[1730325771624,0.36433828,2658.3,2657.8,0.7728]
[1730325774542,0.36433828,2658.3,2657.8,0.7728]
[1730325788557,3.0,2658.2,2657.8,0.7728]
[1730325788754,0.83643383,2658.1,2657.8,0.7728]
[1730325798295,1.42589568,2658.1,2657.8,0.7728]
[1730325802676,1.49110322,2658.1,2657.8,0.7728]
[1730325802873,1.42589568,2658.1,2657.8,0.7728]
[1730325803079,0.58946185,2658.1,2657.8,0.7728]
[1730325805101,1.21028264,2658.4,2658.0,0.8055]
[1730325805456,5.0,2659.8,2658.5,4.31144]
[1730325805619,5.0,2659.8,2658.8,0.7602]
[1730325805769,0.5,2659.7,2658.8,0.7602]
[1730325806674,3.0,2659.3,2658.8,0.7602]
[1730325809704,1.2302918,2659.6,2658.8,0.7602]
[1730325810884,4.2302918,2659.6,2658.8,0.7602]
[1730325811667,1.2302918,2659.6,2658.8,0.7602]
[1730325814415,5.0,2659.4,2658.8,0.7602]
[1730325814581,0.5,2659.3,2658.8,0.7602]
[1730325814906,3.5,2659.3,2658.8,0.7602]
[1730325819618,1.2302918,2659.6,2658.8,0.7602]
[1730325820880,3.0,2659.5,2658.8,0.7602]
[1730325821577,3.0,2659.2,2658.8,0.7602]
[1730325825419,3.0,2659.2,2657.9,0.768]
[1730325825626,3.0,2659.2,2657.8,0.55]
[1730325825627,3.0,2659.2,2658.1,0.768]
[1730325825786,3.93191823,2659.2,2658.1,0.768]
[1730325826387,0.06516739,2659.1,2658.1,0.768]
[1730325826819,3.93191823,2659.2,2658.1,0.768]
[1730325827903,5.0,2658.7,2658.1,0.768]
[1730325828130,3.49128226,2658.6,2658.1,0.768]
[1730325828452,3.0,2658.3,2657.9,0.7595]
[1730325829411,3.0,2658.6,2657.9,0.7595]
[1730325830256,3.8816,2658.6,2657.9,0.7595]
[1730325831361,3.0,2658.6,2657.9,0.7595]
[1730325833416,5.8025,2659.0,2657.9,0.7595]
[1730325833417,3.0,2658.9,2657.9,0.7595]
[1730325834058,3.49128226,2658.9,2657.9,0.7595]
[1730325834621,3.0,2658.6,2657.9,0.7595]
[1730325835256,3.0,2658.3,2657.9,0.7595]
[1730325835556,0.8,2658.2,2657.9,0.7595]
[1730325837737,0.8,2658.2,2656.7,0.7778]
[1730325838051,5.0,2658.1,2657.0,0.7778]
[1730325838255,3.0,2658.0,2657.0,0.7778]
[1730325839284,3.0,2658.0,2657.2,0.7778]
[1730325840902,0.49128226,2657.9,2657.2,0.7778]
[1730325841090,3.0,2657.7,2657.2,0.7778]
[1730325841295,3.84912823,2657.7,2657.2,0.7778]
[1730325848498,0.58958727,2657.6,2657.2,0.7778]
[1730325850627,5.0,2658.1,2657.2,0.7778]
[1730325850965,5.58952632,2658.1,2657.2,0.7778]
[1730325851379,3.0,2658.0,2657.2,0.7778]
[1730325851580,3.85895263,2658.0,2657.2,0.7778]
[1730325852504,3.0,2658.0,2657.2,0.7778]
[1730325856989,0.58952632,2658.1,2657.4,0.7656]
[1730325858327,3.0,2658.3,2657.4,0.7656]
[1730325859261,0.7578,2658.8,2657.7,0.7949]
[1730325859262,5.0,2658.8,2657.7,0.7949]
[1730325859544,5.0,2658.8,2657.9,0.7949]
[1730325860309,5.5,2658.8,2657.9,0.7949]
[1730325860847,3.0,2658.7,2657.9,0.7949]
[1730325865688,0.49128226,2658.6,2657.9,0.7949]
[1730325866038,3.7951,2658.7,2657.9,0.7949]
[1730325867375,3.0,2658.7,2657.9,0.7949]
[1730325878349,3.7734,2658.4,2656.9,0.8323]
[1730325878510,3.0,2658.1,2656.9,0.8323]
[1730325879220,0.39133856,2658.6,2657.1,4.59579]
[1730325879436,3.0,2658.7,2657.4,0.8323]
[1730325879755,3.55,2658.7,2657.5,0.8323]
[1730325880264,5.39120608,2658.8,2657.9,0.8323]
[1730325880265,0.39120608,2658.8,2657.9,0.8323]
[1730325880432,1.85409113,2659.4,2658.1,0.8323]
[1730325880433,5.0,2659.3,2658.1,0.8323]
[1730325880615,0.68540911,2659.2,2658.1,0.8323]
[1730325881023,1.17669137,2659.2,2658.1,0.8323]
[1730325881317,0.98688457,2659.1,2658.1,0.8323]
[1730325882323,0.49560231,2659.1,2658.1,0.8323]
[1730325883531,3.68540911,2659.2,2658.1,0.8323]
[1730325883733,0.86854091,2659.1,2658.1,0.8323]
[1730325884318,3.68540911,2659.2,2658.1,0.8323]
[1730325884523,3.0,2659.2,2658.3,0.8257]
[1730325888365,0.58940887,2659.4,2658.5,0.7522]
[1730325888663,0.58940887,2659.4,2658.2,3.76184]
[1730325888664,0.58940887,2659.4,2658.6,0.82741971]
[1730325888828,1.2302918,2659.6,2658.6,0.82741971]
[1730325889350,1.2302918,2659.6,2658.7,0.55]
[1730325889522,1.2302918,2659.6,2658.9,0.7663]
[1730325898252,1.2302918,2659.6,2658.7,0.55]
[1730325898253,1.2302918,2659.6,2659.1,0.8068]
[1730325903326,5.0,2659.5,2659.1,0.8068]
[1730325903531,3.62302918,2659.4,2659.1,0.8068]
[1730325906645,0.7743,2659.3,2658.2,0.7512]
[1730325906828,3.0,2659.1,2658.2,0.7512]
[1730325907556,3.0,2658.8,2658.2,0.7512]
[1730325907721,0.8,2658.7,2658.2,0.7512]
[1730325911850,0.8,2658.7,2657.9,0.7572]
[1730325911851,3.0,2658.5,2657.9,0.7572]
[1730325913768,3.7525,2658.2,2656.9,0.7616]
[1730325914098,3.0,2657.9,2656.9,0.7616]
[1730325914277,3.87525,2658.1,2656.9,0.7616]
[1730325914446,3.0,2658.1,2657.1,0.7718]
[1730325917078,4.64578386,2658.0,2657.1,0.7718]
[1730325917251,1.64578386,2658.0,2657.1,0.7718]
[1730325917456,3.0,2657.9,2657.1,0.7718]
[1730325917974,2.61036225,2658.0,2657.1,0.7718]
[1730325917975,0.96457839,2658.0,2657.1,0.7718]
[1730325921233,4.68216463,2658.4,2657.3,0.7704]
[1730325922304,4.68216463,2658.4,2657.5,0.8322]
[1730325922817,1.68216463,2658.4,2657.7,0.8322]
[1730325923399,1.68216463,2658.4,2657.8,0.07524449]
[1730325923730,1.68216463,2658.4,2657.9,0.7539]
[1730325924092,5.0,2659.1,2657.9,0.7539]
[1730325924294,0.58352998,2659.0,2657.9,0.7539]
[1730325924829,0.58352998,2659.0,2657.7,3.76258]
[1730325924830,0.58352998,2659.0,2658.0,0.0752351]
[1730325925138,3.58352998,2659.0,2658.1,0.7539]
[1730325926831,3.0,2658.7,2658.1,0.7539]
[1730325927029,0.8,2658.6,2658.1,0.7539]
[1730325927442,3.0,2658.4,2658.1,0.7539]
[1730325932371,0.09404634,2658.3,2658.1,0.7539]
[1730325934687,0.09404634,2658.3,2657.1,3.76338]
[1730325934884,3.0,2658.0,2657.2,0.7554]
[1730325935396,0.0936957,2657.9,2657.2,0.7554]
[1730325938280,0.0936957,2657.9,2657.3,0.55]
[1730325938482,3.0,2658.3,2657.4,0.8213]
[1730325938696,0.09368294,2657.8,2657.6,0.8213]
[1730325938893,3.0,2658.3,2657.6,0.8213]
[1730325939096,0.09345288,2657.7,2657.6,0.8213]
[1730325939294,3.8,2658.3,2657.6,0.8213]
[1730325939463,0.09345288,2657.7,2657.6,0.8213]
[1730325939664,3.8,2658.3,2657.6,0.8213]
[1730325939916,0.09345288,2657.7,2657.6,0.8213]
[1730325940197,3.8,2658.3,2657.6,0.8213]
[1730325940403,0.09345288,2657.7,2657.6,0.8213]
[1730325940703,5.8001,2658.7,2657.7,0.7784]
[1730325941009,6.38011,2658.7,2657.7,0.7784]
[1730325941782,3.0,2658.6,2657.7,0.7784]
[1730325945215,0.64547378,2658.7,2657.8,0.62524284]
[1730325945424,0.06546378,2658.7,2657.9,0.7556]
[1730325947120,3.0,2658.8,2657.9,0.7556]
[1730325947412,3.939703,2658.8,2657.9,0.7556]
[1730325950232,0.5893931,2658.6,2657.9,0.7556]
[1730325952890,0.09378928,2658.5,2657.9,0.7556]
[1730325957586,0.09378928,2658.5,2657.8,0.55]
[1730325957587,0.09378928,2658.5,2658.1,0.7946]
[1730325958141,0.58934009,2659.0,2658.1,0.7946]
[1730325958455,0.0905804,2658.4,2658.1,0.7946]
[1730325958786,0.09087543,2658.9,2658.1,0.7946]
[1730325958988,0.09029982,2658.3,2658.1,0.7946]
[1730325959305,1.70054213,2659.0,2658.1,0.7946]
[1730325959443,0.09020003,2658.2,2658.1,1.3446]
[1730325959637,0.58934009,2659.0,2658.2,0.7683]
[1730325960395,0.58934009,2659.0,2658.4,0.7819]
[1730325960592,1.40254009,2659.0,2658.4,0.7819]
[1730325961298,0.33492393,2658.9,2658.4,0.7819]
[1730325962588,3.58934009,2659.0,2658.4,0.7819]
[1730325962959,1.94669925,2659.1,2658.4,0.7819]
[1730325967863,0.09128252,2659.0,2658.4,0.7819]
[1730325968360,0.09128252,2659.0,2658.5,0.8201]
[1730325969606,0.09128252,2659.0,2658.6,0.89531855]
[1730325970168,0.09128252,2659.0,2658.8,0.783]
[1730325970413,0.09128252,2659.0,2658.9,1.333]
[1730325970565,1.94669925,2659.1,2658.9,0.55]
[1730325970773,5.06547233,2660.1,2659.1,0.785]
[1730325971004,0.50654723,2660.0,2659.1,0.785]
[1730325971509,0.50654723,2660.0,2659.2,0.85300278]
[1730325972212,0.771,2660.3,2659.2,0.85300278]
[1730325972380,3.771,2660.3,2659.2,0.85300278]
[1730325972763,3.771,2660.3,2659.2,0.7778]
[1730325976183,0.39156989,2660.2,2659.2,0.7778]
[1730325976522,0.41625699,2660.1,2659.2,0.7778]
[1730325979075,0.41625699,2660.1,2659.4,0.8125]
[1730325979388,1.95407158,2660.3,2659.4,0.8125]
[1730325982703,3.8089,2660.2,2659.4,0.8125]
[1730325982911,3.90063975,2660.2,2659.4,0.8125]
[1730325984937,0.90063975,2660.2,2659.4,0.8125]
[1730325985435,3.90063975,2660.2,2659.4,0.8125]
[1730325985736,3.0,2660.0,2659.4,0.8125]
[1730325986240,0.09157829,2659.9,2659.4,0.8125]
[1730326004344,0.7828,2659.8,2659.4,0.8125]
[1730326004540,0.09013885,2659.7,2659.4,0.8125]
[1730326004862,0.7828,2659.8,2659.4,0.8125]
[1730326005066,0.09003917,2659.6,2659.4,0.8125]
[1730326005266,0.85811112,2659.9,2659.4,0.8125]
[1730326005502,0.0898093,2659.5,2659.4,0.8125]
[1730326005982,0.85811112,2659.9,2659.4,0.8125]
[1730326006505,0.09010834,2659.8,2659.4,0.8125]
[1730326006691,0.56651029,2659.8,2659.4,0.8125]
[1730326009367,3.0,2659.7,2659.4,0.8125]
[1730326009568,0.0902958,2659.6,2659.4,0.8125]
[1730326014611,0.58111115,2660.1,2659.4,0.8125]
[1730326014773,0.08435115,2660.0,2659.4,0.8125]
[1730326014979,5.0,2660.6,2659.6,0.7542]
[1730326015211,0.08165813,2660.5,2659.6,0.7542]
[1730326016501,3.08165813,2660.5,2659.6,0.7542]
[1730326033121,0.58908449,2660.3,2659.6,0.7542]
[1730326033424,0.08089645,2660.2,2659.6,0.7542]
[1730326035131,3.0,2660.5,2659.6,0.7542]
[1730326035442,1.90061939,2660.9,2659.7,0.90108896]
[1730326035622,0.57152028,2660.8,2659.7,0.90108896]
[1730326036436,3.57152028,2660.8,2659.9,0.8243]
[1730326036641,0.08145834,2660.8,2659.9,0.8243]
[1730326036944,0.08145834,2660.8,2660.1,0.8243]
[1730326037508,0.08145834,2660.8,2660.2,0.8243]
[1730326039938,0.08145834,2660.8,2660.4,0.8331]
[1730326040139,0.27966611,2660.8,2660.4,0.8331]
[1730326040438,0.08145834,2660.8,2660.4,0.8331]
[1730326040604,8.0,2661.5,2660.4,0.8331]
[1730326040804,0.07377841,2661.3,2660.4,0.8331]
[1730326041013,5.0,2661.2,2660.4,0.8331]
[1730326041304,3.58053099,2661.1,2660.4,0.8331]
[1730326041736,0.07315315,2661.1,2660.6,0.8004]
[1730326042035,0.39151723,2661.4,2660.6,0.8004]
[1730326042257,0.0733555,2661.3,2660.6,0.8004]
[1730326055087,0.0733555,2661.3,2660.7,0.62516269]
[1730326055390,1.79900499,2661.7,2660.8,0.8289]
[1730326055546,1.79900499,2661.7,2661.0,0.8289]
[1730326055547,0.05577557,2661.6,2661.0,0.8289]
[1730326055753,0.05577557,2661.6,2661.0,0.90405168]
[1730326055948,0.05577557,2661.6,2661.0,0.8289]
[1730326056191,0.05577557,2661.6,2661.1,0.8847483]
[1730326056984,0.05577557,2661.6,2661.1,0.8096]
[1730326057505,0.05577557,2661.6,2661.3,0.8089]
[1730326057785,0.58888083,2662.1,2661.3,0.8089]
[1730326058143,0.05121406,2662.0,2661.4,0.07514403]
[1730326058348,0.05121406,2662.0,2661.5,0.8271]
[1730326059159,5.0,2662.3,2661.5,0.8271]
[1730326059461,0.0482166,2662.2,2661.5,0.8271]
[1730326059760,0.04805941,2662.1,2661.5,0.8271]
[1730326059952,3.22616011,2662.5,2661.5,0.8271]
[1730326060180,0.04659401,2662.4,2661.5,0.8271]
[1730326060390,1.11704808,2662.4,2661.5,0.8271]
[1730326063405,1.11704808,2662.4,2661.7,0.788]
[1730326066046,0.04659401,2662.4,2661.7,0.788]
[1730326066218,4.15038145,2662.6,2661.7,0.788]
[1730326066421,0.0442362,2662.5,2661.7,0.788]
[1730326073565,0.8134,2662.2,2661.7,0.788]
[1730326073947,0.04264369,2662.1,2661.7,0.788]
[1730326074145,0.42824806,2662.1,2661.7,0.788]
[1730326074592,5.42824806,2662.1,2661.7,0.788]
[1730326075482,3.0,2662.0,2661.7,0.788]
[1730326075850,0.04228694,2661.9,2661.7,0.788]
[1730326089468,0.83438694,2661.9,2660.7,0.8179]
[1730326089636,0.83438694,2661.9,2661.1,0.804]
[1730326089637,1.67717607,2661.9,2661.1,0.804]
[1730326095315,3.0,2661.6,2661.1,0.804]
[1730326095497,0.8,2661.5,2661.1,0.804]
[1730326095671,0.84039034,2661.5,2661.1,0.804]
[1730326096511,0.04039034,2661.5,2661.1,0.804]
[1730326097385,3.0,2661.8,2661.1,0.804]
[1730326097910,0.8011,2661.6,2661.1,0.804]
[1730326098271,3.04037808,2661.5,2660.3,0.55]
[1730326098490,3.92452589,2661.5,2660.6,0.7522]
[1730326099430,3.92452589,2661.5,2660.6,0.82736176]
[1730326099680,3.92452589,2661.5,2660.6,0.7522]
[1730326099878,0.97256259,2661.4,2660.6,0.7522]
[1730326100079,0.0404542,2661.3,2660.6,0.7522]
[1730326100577,0.8011,2661.2,2660.6,0.7522]
[1730326100875,0.04025452,2661.1,2660.6,0.7522]